Cogmind - Beta 13 @@@ ROGUE MODE // 2024.04.01 @ 08:52:55 Player: ImmortalXCurse Result: Destroyed by Y-45 Defender with Heavy Assault Rifle Performance ------------- Evolutions (1) 500 Regions Visited (2) 400 Robots Destroyed (31) 155 Value Destroyed (649) 649 Prototype IDs (0) 0 Alien Tech Used (0) 0 Bonus (0) 0 TOTAL SCORE: 1704 Bonus ------- None Cogmind --------- Core Integrity 0/400 Matter 289/300 Energy 99/100 System Corruption 0% Temperature Cool (9) Movement Flying (760) Ox9 Location -9/Materials Parts ------- > --- POWER (2) -------- (None) > --- PROPULSION (3) --- Flight Unit > --- UTILITY (2) ------ High-capacity Storage Unit Visual Processing Unit > --- WEAPON (2) ------- (None) > --- INVENTORY (20) --- Ion Engine Light Ion Engine Aluminum Leg Wheel Flight Unit Improved Heat Sink High-capacity Battery (250) High-capacity Battery (250) Small Matter Pod (23) Small Matter Pod (0) Signal Interpreter Targeting Computer Improved Targeting Computer Grenade Launcher Peak State ------------ > --- POWER ------------ Ion Engine Light Ion Engine > --- PROPULSION ------- Aluminum Leg Aluminum Leg Aluminum Leg > --- UTILITY ---------- High-capacity Storage Unit Visual Processing Unit > --- WEAPON ----------- Light Assault Rifle Mining Laser > --- INVENTORY -------- Ion Engine Light Ion Engine Light Ion Engine Flight Unit Flight Unit Flight Unit Flight Unit Flight Unit Improved Heat Sink Signal Interpreter Salvage Targeting Computer Salvage Targeting Computer Targeting Computer Improved Targeting Computer Grenade Launcher [Rating: 12] Favorites ----------- Power Light Ion Engine Engine Light Ion Engine Propulsion Flight Unit Leg Aluminum Leg Wheel Wheel Flight Unit Flight Unit Utility High-capacity Storage Unit Storage High-capacity Storage Unit Processor Visual Processing Unit Weapon Light Assault Rifle Energy Gun Small Laser Energy Cannon Beam Cannon Ballistic Gun Light Assault Rifle Launcher Grenade Launcher Special Weapon Mining Laser Build | -11 -10 -9 ------- Run | Yrd Mat Mat Slots Evolved 2 | . . 2 Power 1 | . . 1 Propulsion 1 | . . 1 Utility . | . . . Weapon . | . . . Parts Attached 45 | 6 9 30 Power 8 | 1 1 6 Engine 8 | 1 1 6 Core . | . . . Reactor . | . . . Propulsion 21 | 3 2 16 Treads . | . . . Leg 10 | 1 . 9 Wheel 2 | 2 . . Hover . | . . . Flight 9 | . 2 7 Utility 2 | . 2 . Device . | . . . Storage 1 | . 1 . Processor 1 | . 1 . Hackware . | . . . Protection . | . . . Artifact . | . . . Weapon 14 | 2 4 8 Energy Gun 4 | 1 1 2 Energy Cannon 1 | . 1 . Ballistic Gun 5 | 1 1 3 Ballistic Cannon . | . . . Launcher 3 | . 1 2 Special Weapon 1 | . . 1 Impact Weapon . | . . . Slashing Weapon . | . . . Piercing Weapon . | . . . Special Melee Weapon . | . . . Unidentified Prototypes . | . . . Parts Lost 27 | . 5 22 Power 8 | . 1 7 Propulsion 9 | . 2 7 Utility . | . . . Weapon 10 | . 2 8 Highest Loss Streak 6 | . 3 6 To Critical Strikes . | . . . Average Slot Usage (%) 80 | . 77 82 Engine 15 | . 12 17 Leg 10 | . . 16 Wheel 2 | . 6 . Flight 13 | . 16 11 Storage 10 | . 10 11 Processor 8 | . 3 11 Energy Gun 3 | . 4 3 Energy Cannon 3 | . 8 1 Ballistic Gun 10 | . 13 8 Special Weapon 1 | . . 1 Naked Turns . | . . . Heaviest Build 53 | 6 50 53 Greatest Support 30 | 20 20 30 Greatest Overweight (x) 15 | . 15 6 Average Overweight (x) 2 | . 2 2 Largest Inventory Capacity 20 | 5 20 20 Average Capacity 18 | 5 16 20 Most Carried 20 | 5 10 20 Average Carried 11 | 2 5 14 Final Capacity 20 | 5 20 20 Final Carried 14 | 5 9 14 Class Distribution -------------------- 62% | Scavenger-Mutant 37% | Mutant Dominant Class ---------------- Mutant | -10/Materials Scavenger-Mutant | -9/Materials Resources | -11 -10 -9 ----------- Run | Yrd Mat Mat Matter Collected 731 | 261 58 412 Remotely . | . . . Salvage Created 847 | 42 195 610 Parts 70 | 3 19 48 Haulers Intercepted . | . . . Recyclers Shooed . | . . . Parts Field Recycled . | . . . Retrieved Matter . | . . . Parts Self-Destructed . | . . . Prevented . | . . . Kills | -11 -10 -9 ------- Run | Yrd Mat Mat Combat Hostiles Destroyed 27 | 1 6 20 Guns 21 | 1 4 16 Cannons 3 | . . 3 AOE 3 | . 2 1 Classes Destroyed 5 | 1 3 1 Worker 3 | . 1 2 Watcher 1 | . 1 . Swarmer 14 | . 3 11 Grunt 11 | 1 3 7 Sentry 2 | . . 2 Best Kill Streak 5 | 1 3 5 Combat Bots Only 4 | 1 3 4 Max Kills in Single Turn 2 | 1 2 1 Gunslinging . | . . . Exploded 2 | . 2 1 Melee . | . . . Uniques/NPCs Destroyed . | . . . Combat | -11 -10 -9 -------- Run | Yrd Mat Mat Hostile Shots Fired 297 | 1 73 223 Missed 79 | 1 14 64 Damage Taken 2419 | . 640 1779 Core 654 | . 245 409 Absorbed by Shields . | . . . Core Remaining (%) 51 | 100 2 . Volleys Fired 118 | 1 24 93 Largest 2 | 2 2 2 Hottest 90 | 60 90 80 Shots Fired 184 | 2 47 135 Gun 162 | 2 42 118 Cannon 20 | . 4 16 Launcher 2 | . 1 1 Special . | . . . Kinetic 108 | 1 23 84 Thermal 59 | . 10 49 Explosive 2 | . 1 1 Electromagnetic 15 | 1 13 1 Robot Hit Streak 8 | 1 8 7 Robot Miss Streak 5 | . 3 5 Penetration Max . | . . . Secondary Targets 4 | . 2 2 Max Gunslinging Chain 1 | . 1 1 Shots Hit Robots 103 | 1 25 77 Core Hits 55 | 1 11 43 Critical Kills . | . . . Critical Parts Destroyed . | . . . Critical Strikes . | . . . Melee Attacks . | . . . Impact . | . . . Slashing . | . . . Piercing . | . . . Sneak Attacks . | . . . Combat Hostiles . | . . . Follow-up Attacks . | . . . Damage Inflicted 1422 | 15 400 1007 Guns 1078 | 15 258 805 Cannons 174 | . 18 156 Explosions 170 | . 124 46 Melee . | . . . Ramming . | . . . Kinetic 707 | . 97 610 Thermal 474 | . 123 351 Explosive 108 | . 62 46 Electromagnetic 133 | 15 118 . Impact . | . . . Slashing . | . . . Piercing . | . . . Highest Corruption . | . . . Average Corruption . | . . . Corruption Purged . | . . . Corruption Blocked . | . . . Overload Shots . | . . . Overflow Damage . | . . . Projectiles . | . . . Explosions . | . . . Melee . | . . . Knockbacks . | . . . Impact . | . . . Kinetic . | . . . Secondary . | . . . Self-Inflicted Damage . | . . . Shots . | . . . Rammed . | . . . Targets Rammed . | . . . Kicked . | . . . Crushed . | . . . Highest Temperature 203 | 20 130 203 Average Temperature 55 | 15 53 56 Received Heat Transfer 804 | . 312 492 Siege Activations . | . . . Robots Corrupted . | . . . Combat Hostiles . | . . . Parts Fried . | . . . Impact Corruptions . | . . . Robots Melted . | . . . Combat Hostiles . | . . . Parts Melted 3 | . . 3 Heat Transferred 1020 | . 237 783 Parts Sabotaged . | . . . Parts Stolen . | . . . Parts Stripped . | . . . Power Chain Reactions 1 | . 1 . Alert | -11 -10 -9 ------- Run | Yrd Mat Mat Peak Influence 217 | 20 217 195 Initial 17 | . 13 17 Average 93 | 1 100 97 Maximum Alert Level 1 | . 1 . Low Security (%) 90 | 100 70 100 Level 1 9 | . 29 . Level 2 . | . . . Level 3 . | . . . Level 4 . | . . . Level 5 . | . . . High Security . | . . . Max Security . | . . . Squads Dispatched 2 | . 2 . Investigation . | . . . Extermination . | . . . Reinforcement 2 | . 2 . Assault . | . . . Garrison . | . . . Intercept . | . . . Searches Triggered . | . . . Construction Impeded . | . . . Haulers Reinforced . | . . . Active Scanning Responses . | . . . Cargo Convoy Interrupts . | . . . Stealth | -11 -10 -9 --------- Run | Yrd Mat Mat Distress Signals 3 | . 2 1 Communications Jammed . | . . . Distress Signals . | . . . Times Spotted 49 | 1 12 36 Peak Tracking Total 5 | 1 5 5 Tactical Retreats 3 | . 2 1 Traps | -11 -10 -9 ------- Run | Yrd Mat Mat Traps Triggered . | . . . Indirectly . | . . . Trap Hack Attempts . | . . . Triggered . | . . . Disarmed . | . . . Reprogrammed . | . . . Reused . | . . . Traps Extracted . | . . . Installed . | . . . Triggered 1 | . 1 . Machines | -11 -10 -9 ---------- Run | Yrd Mat Mat Machines Disabled . | . . . Max in Single Turn . | . . . Machines Repaired . | . . . Machines Dismantled . | . . . Machines Sabotaged . | . . . Overloaded Fab Kills . | . . . Hacking | -11 -10 -9 --------- Run | Yrd Mat Mat Machines Accessed 4 | . 1 3 Terminals 2 | . 1 1 Fabricators . | . . . Repair Stations 1 | . . 1 Recycling Units 1 | . . 1 Scanalyzers . | . . . Garrison Access . | . . . Total Hacks 8 | . 3 5 Successful 6 | . 1 5 Failed 2 | . 2 . Catastrophic . | . . . Database Lockouts . | . . . Manual . | . . . Terminals 5 | . 3 2 Fabricators . | . . . Repair Stations 1 | . . 1 Recycling Units 2 | . . 2 Scanalyzers . | . . . Garrison Access . | . . . Terminal Hacks 3 | . 1 2 Record 2 | . 1 1 Zone Layout 1 | . . 1 Fabricator Hacks . | . . . Repair Station Hacks 1 | . . 1 Scan Component 1 | . . 1 Recycling Unit Hacks 2 | . . 2 Process 1 | . . 1 Retrieve Components 1 | . . 1 Scanalyzer . | . . . Garrison Access Hacks . | . . . Unauthorized Hacks . | . . . Terminals . | . . . Fabricators . | . . . Repair Stations . | . . . Recycling Units . | . . . Scanalyzers . | . . . Garrison Access . | . . . Data Cores Recovered . | . . . Used . | . . . Hacking Detections 4 | . 1 3 Full Trace Events 1 | . 1 . Feedback Events . | . . . Feedback Blocked . | . . . Robot Schematics Acquired . | . . . Robots Built . | . . . Authchips . | . . . Time . | . . . Total Robot Build Rating . | . . . Part Schematics Acquired . | . . . Parts Built . | . . . Authchips . | . . . Time . | . . . Total Part Build Rating . | . . . Parts Repaired . | . . . Time . | . . . Parts Recycled . | . . . Recycled Matter . | . . . Retrieved Matter . | . . . Retrieved Components 8 | . . 8 Parts Scanalyzed . | . . . Part Schematics Acquired . | . . . Parts Damaged . | . . . Bothacking | -11 -10 -9 ------------ Run | Yrd Mat Mat Used RIF Installer . | . . . Robots Hacked . | . . . Non-combat . | . . . Combat . | . . . Robot Hacks Applied . | . . . Relay Couplers Released . | . . . Fabnet Peak Effective % . | . . . Robots Rewired . | . . . Allies Hacked . | . . . Hacks Repelled . | . . . Allies | -11 -10 -9 -------- Run | Yrd Mat Mat Total Allies . | . . . Largest Group . | . . . Highest-Rated Group . | . . . Highest-Rated Ally . | . . . Total Orders . | . . . Ally Attacks . | . . . Total Damage . | . . . Kills . | . . . Allies Corrupted . | . . . Allies Melted . | . . . Intel | -11 -10 -9 ------- Run | Yrd Mat Mat Robot Analysis Total . | . . . Derelict Logs Recovered . | . . . Drone Launches . | . . . Drone Recoveries . | . . . Exploration | -11 -10 -9 ------------- Run | Yrd Mat Mat Turns Passed 1810 | 98 588 1124 Spaces Moved 644 | 119 198 327 Core 57 | 53 4 . Treads . | . . . Legs 230 | . . 230 Wheels 195 | 66 129 . Hover . | . . . Flight 162 | . 65 97 Fastest Speed 50 | 50 80 190 Average Speed 219 | 66 250 257 Slowest Speed 1000 | 80 1000 517 Overloaded Moves . | . . . Propulsion Burnouts . | . . . Robots Hopped . | . . . Cave-ins Triggered . | . . . Exploration Rate (%) 22 | 6 31 29 Regions Visited 2 Branch Regions . Pre-discovered Areas . | . . . Known Exits Taken . | . . . Unknown Exits Taken 2 | 1 1 . Scrap Searched . | . . . Spaces Dug . | . . . Terrain Destroyed 18 | . 10 8 Melee . | . . . Projectile . | . . . AOE 18 | . 10 8 Terrain Rammed . | . . . Walls Destroyed . | . . . Machines Disabled . | . . . Actions | -11 -10 -9 --------- Run | Yrd Mat Mat Total 871 | 136 253 482 Wait . | . . . Move 642 | 118 197 327 Hop . | . . . Pick Up 54 | 10 17 27 Fast Attach . | . . . Attach 32 | 6 7 19 Detach 2 | 1 . 1 Swap 13 | . 2 11 Drop 10 | . 6 4 Fire 118 | 1 24 93 Melee . | . . . Ram . | . . . Kick . | . . . Crush . | . . . Escape Stasis . | . . . Rewire . | . . . Trap . | . . . Miscellaneous . | . . . Route ------- -11/Scrapyard -10/Materials -9/Materials History --------- Turn | Location | Event 2 | -11/Scrapyard | Met Revision 17 82 | -11/Scrapyard | Discovered new exit (range 8) 99 | -11/Scrapyard | Entered Materials 301 | -10/Materials | Core integrity fell below 50% 309 | -10/Materials | Build established: Mutant 318 | -10/Materials | Core integrity fell below 20% 346 | -10/Materials | Lost 3 parts (1n2w) 599 | -10/Materials | Discovered new exit (range 17) 687 | -10/Materials | Entered another Materials area 687 | -9/Materials | Evolved 2 slots: Power x1, Propulsion x1 871 | -9/Materials | Lost 3 parts (3w) 1209 | -9/Materials | Build established: Scavenger-Mutant 1331 | -9/Materials | Lost 3 parts (1p1n1w) 1508 | -9/Materials | Core integrity fell below 50% 1548 | -9/Materials | Lost 3 parts (2p1w) 1799 | -9/Materials | Core integrity fell below 20% 1811 | -9/Materials | Destroyed by Y-45 Defender with Heavy Assault Rifle Last Messages --------------- Acquired Wheel. R-06 Scavenger collects Lgt. Ion Engine. R-06 Scavenger collects Flight Unit. Acquired 18 matter. R-06 Scavenger collects Lgt. Ion Engine. Acquired Lgt. Assault Rifle. Acquired 19 matter. Acquired Lgt. Ion Engine. R-06 Scavenger collects Flight Unit. R-06 Scavenger collects Wheel. R-06 Scavenger collects Flight Unit. W-16 Scout sends out distress signal. K-01 Serf destroyed. Assault Rifle destroyed. Ion Engine destroyed. Flight Unit destroyed. Lgt. Ion Engine destroyed. Flight Unit destroyed. Lgt. Assault Rifle destroyed. [Achievement: First Step to Greatness] Map ----- +----------------------------------------------------+ | ?????????????????????"" """ ## ################+ | | ??????????????????? ???# #????# | | ???????????????????####+###### ###### | | ????????????????????# | | ????????????????????# #######/######### | | ????????????????????# #???????????????? | | ????????????????????# #???????????????? | | ????????????????????# #???????????????? | | ????????????????????# #???????????????? | | ????????????????????# """ %""" #???????????????? | | ????????????????????# """ %""" #???????????????? | | ????????????????????# """ """ #???????????????? | | ????????????????????# * #???????????????? | | ??????????# ???????# = #???????????????? | | ??????????# ####### """ """ #???????????????? | | ??????????# a """ """ #???????????????? | | ??????????# """ """ #???????????????? | | ????????/ #???????????????? | | ??????????# #???????????????? | | ????????????+########Y ########???????????????? | | ????????????????????# #??????????????????????? | | ????????????????????# #??????????????????????? | | ????????????????????# #??????????????????????? | | ????????????????????# #??????????????????????? | | ????????????????????# #??????????????????????? | | ????????????????????# @#??????????????????????? | | ????????????????????# #??????????????????????? | | ????????????????????# #??????????????????????? | | ????????????????????# #??????????????????????? | | ????????????????????# #??????????????????????? | | ????????????????????# #??????????????????????? | | ????????????????????# #??????????????????????? | | ????????????????????# ??????????????????????? | | ????????????????????# ??????????????????????? | | ????????????????????# Y ??????????????????????? | | ????????????????????# ##;##??????????????????????? | | ????????????????????% ?# ????????????????????????? | | ????????????????????! ?# ????????????????????????? | | ??????????????????? ?# ????????????????????????? | | ??????????????????? ??# ????????????????????????? | | ?????????????????? ??? ????????????????????????? | | ???????????????????????? ????????????????????????? | | ????????????????????????#????????????????????????? | | ?????????????????????????????????????????????????? | | ?????????????????????????????????????????????????? | | ?????????????????????????????????????????????????? | | ?????????????????????????????????????????????????? | | ?????????????????????????????????????????????????? | | ?????????????????????????????????????????????????? | | ?????????????????????????????????????????????????? | +----------------------------------------------------+ Best States ------------- Heat Dissipation 28 Energy Generation 15 Energy Capacity 275 Matter Stores 300 Matter Capacity 300 Sight Range 18 Terrain Scan Density 10 Evasion (%) 50 Item Schematics ----------------- None Robot Schematics ------------------ None Fabricated ------------ Nothing Alien Tech Used ----------------- None Achievements -------------- Close Call First Step to Greatness Storm Trooper Uninvited Guest Challenges ------------ None Game ------ Seed MasterCoreCompactor Manual? 0 Play Time 00:39:30 Cumulative 0.6 hours Start 2024.04.01 @ 00:34:58 End 2024.04.01 @ 08:52:55 Sessions 2 Manual Loads 0 Difficulty Rogue Special Mode None Game No. 1 Rogue 1 Adventurer 0 Explorer 0 Win Type - Total 0 Types 0/0/0/0/0/0/0/0/0 Lore% 0 Gallery% 1 Achievement% 1 Wizard Run 0 Options --------- Layout 1 ASCII 0 Keyboard 0 Movement Mouse Keybinds 0 Fullscreen 1 Font 48/Smallcaps Map View 50x35 Zoom Use 1% Tactical HUD 0 Map Filters NONE Filters NONE Steam 1 RUN: 2b4dd4c5-8092-4d59-9fa5-f7bcbe1928d4